bitfinex-derivatives/quotes_ETHF0:USTF0_20260306
["timestamp","ask_amount","ask_price","bid_price","bid_amount"]
[1772810130961,5.6208661,1986.3,1985.6,5.84185792]
[1772810131156,5.6208661,1986.3,1985.4,5.8476565]
[1772810131356,5.6208661,1986.3,1985.4,0.00579858]
[1772810131556,5.60423823,1986.1,1984.6,5.88468417]
[1772810131755,5.60423823,1985.9,1984.6,5.88468417]
[1772810131956,2.73789742,1986.2,1984.6,5.88468417]
[1772810131957,5.60423823,1985.7,1984.6,5.88468417]
[1772810132462,5.60423823,1986.1,1984.8,5.88468417]
[1772810132663,5.60423823,1986.1,1985.0,5.88468417]
[1772810132956,5.60423823,1986.1,1985.2,5.88468417]
[1772810133161,5.60959674,1986.3,1985.2,5.88468417]
[1772810133362,5.60959674,1986.3,1985.4,5.88468417]
[1772810134060,0.00535851,1986.3,1985.4,5.88468417]
[1772810134252,5.60423823,1987.1,1985.8,5.88468417]
[1772810134452,5.60423823,1987.1,1986.0,5.88468417]
[1772810135362,0.00357724,1987.1,1986.2,5.88468417]
[1772810135563,0.00357724,1987.1,1986.2,5.89119071]
[1772810136059,5.60781547,1987.1,1986.2,5.89119071]
[1772810138358,5.60781547,1987.1,1986.2,0.00650654]
[1772810138558,5.60781547,1987.1,1985.6,5.88468417]
[1772810138559,5.60423823,1986.9,1985.6,5.88468417]
[1772810139057,5.60423823,1986.9,1985.8,5.88468417]
[1772810139460,5.60423823,1986.9,1985.9,0.25176]
[1772810139664,5.60781547,1987.1,1986.0,5.88468417]
[1772810142363,5.60423823,1986.9,1985.8,5.88942492]
[1772810143359,5.60423823,1986.7,1985.4,5.88468417]
[1772810143557,5.60423823,1986.5,1985.4,5.88468417]
[1772810143959,5.60423823,1986.3,1985.4,5.88468417]
[1772810144159,5.60423823,1986.3,1985.0,5.88468417]
[1772810144361,5.60423823,1986.1,1985.0,5.88468417]
[1772810144561,5.60423823,1986.1,1985.0,5.89087798]
[1772810145467,5.60423823,1986.1,1985.0,0.00619381]
[1772810146263,5.60423823,1985.7,1985.0,0.00619381]
[1772810146456,5.60936464,1985.7,1985.0,0.00619381]
[1772810146657,0.00512641,1985.7,1985.0,5.89087798]
[1772810146861,5.60423823,1986.1,1985.2,5.88468417]
[1772810147063,5.60423823,1986.6,1985.2,5.88468417]
[1772810147261,5.60423823,1986.6,1985.6,5.88468417]
[1772810147970,5.6103346,1986.6,1985.6,5.88468417]
[1772810148657,0.00609637,1986.6,1985.6,5.88468417]
[1772810148859,5.6103346,1986.6,1985.6,5.88468417]
[1772810149360,5.60423823,1986.0,1985.0,0.00619381]
[1772810149565,5.60423823,1985.8,1985.0,0.00619381]
[1772810149766,5.60423823,1985.8,1985.0,5.89087798]
[1772810150162,5.60423823,1985.8,1985.0,0.00619381]
[1772810150465,5.60423823,1985.8,1984.4,2.98986742]
[1772810150466,5.60423823,1985.8,1984.6,5.88468417]
[1772810151562,5.60423823,1985.8,1984.6,5.88877402]
[1772810152765,5.60423823,1985.6,1984.6,5.88877402]
[1772810153269,5.60423823,1986.0,1984.8,5.88468417]
[1772810154870,5.60423823,1986.0,1985.0,5.88468417]
[1772810155270,5.70391472,1986.4,1985.2,5.88468417]
[1772810155671,5.70391472,1986.4,1984.9,5.3246185]
[1772810155968,5.70391472,1986.2,1984.9,5.3246185]
[1772810157269,0.25176,1986.1,1984.9,5.3246185]
[1772810157465,5.70391472,1985.8,1984.9,5.3246185]
[1772810157775,5.70391472,1986.3,1985.1,5.3246185]
[1772810157973,5.70391472,1986.1,1984.7,5.3246185]
[1772810158167,5.70391472,1985.9,1984.7,5.3246185]
[1772810159572,5.70391472,1985.9,1984.9,5.3246185]
[1772810160274,5.70391472,1985.7,1984.7,5.3246185]
[1772810161169,5.70391472,1985.5,1984.6,0.00408985]
[1772810161373,5.70391472,1985.3,1984.6,0.00408985]
[1772810162172,5.62608425,1984.9,1984.0,5.5640805]
[1772810162378,5.62608425,1984.8,1983.8,5.5640805]
[1772810162573,5.87800425,1984.8,1983.8,5.5640805]
[1772810162773,5.87800425,1984.8,1983.1,5.5640805]
[1772810163079,5.8829718,1984.8,1983.1,5.5689026]
[1772810163773,5.87803425,1984.6,1983.1,5.5689026]
[1772810164574,6.977,1984.7,1983.1,0.0048221]
[1772810164575,5.62608425,1984.0,1983.1,0.0048221]
[1772810164777,5.62608425,1984.4,1983.1,5.5689026]
[1772810166271,5.62608425,1984.4,1983.3,5.5640805]
[1772810166476,0.00496755,1984.8,1983.5,5.5640805]
[1772810166679,0.00496755,1984.8,1983.7,5.5640805]
[1772810166680,5.6310518,1984.8,1983.7,5.5640805]
[1772810166871,0.00496755,1984.8,1983.9,5.5640805]
[1772810168277,5.6310518,1984.8,1983.9,5.5640805]
[1772810168479,5.6310518,1984.8,1983.4,5.5640805]
[1772810168978,5.8829818,1984.8,1983.4,5.5640805]
[1772810171880,5.6310518,1984.8,1983.4,5.5640805]
[1772810172179,5.6310518,1984.8,1983.7,5.5640805]
[1772810172383,0.00496755,1984.8,1983.7,5.5640805]
[1772810172982,0.00496755,1984.8,1984.1,5.5640805]
[1772810173186,5.62608425,1985.3,1984.3,5.5640805]
[1772810173678,5.62608425,1984.9,1983.5,5.5640805]
[1772810174187,5.63219705,1984.9,1983.5,5.5640805]
[1772810176289,0.0061128,1984.9,1983.9,5.5640805]
[1772810176486,5.63219705,1984.9,1983.9,5.5640805]
[1772810178285,5.63219705,1984.9,1983.7,17.4510805]
[1772810178487,5.63219705,1984.9,1983.8,5.5640805]
[1772810179690,5.63219705,1984.9,1983.8,5.8161205]
[1772810180095,0.0061128,1984.9,1983.8,5.8161205]
[1772810180286,5.63219705,1984.9,1983.8,5.8161205]
[1772810180586,5.63219705,1984.9,1983.8,5.5640805]
[1772810181095,0.0061128,1984.9,1983.8,5.5640805]
[1772810181390,5.63219705,1984.9,1983.8,5.5640805]
[1772810183588,0.25192,1984.8,1983.8,5.5640805]
[1772810183886,5.62608425,1984.7,1983.8,5.5640805]
[1772810184092,5.62608425,1984.5,1983.7,5.5640805]
[1772810184588,5.62608425,1984.7,1983.7,5.5640805]
[1772810186682,5.62608425,1984.7,1983.7,5.8161405]
[1772810186888,5.63219705,1984.9,1983.7,5.8161405]
[1772810188601,5.62608425,1984.5,1983.7,5.5640805]
[1772810190394,5.62608425,1984.8,1983.7,5.5640805]
[1772810191095,5.62608425,1984.8,1983.8,5.5640805]
[1772810191594,5.62608425,1984.6,1983.8,5.5640805]
[1772810192494,5.61900286,1984.4,1983.3,5.62974581]
[1772810192690,5.61900286,1984.2,1983.1,5.63456791]
[1772810192885,5.61900286,1984.5,1983.1,5.63456791]
[1772810193087,4.08445969,1984.6,1983.1,5.88669791]
[1772810193088,5.61900286,1984.6,1983.1,5.88669791]
[1772810193293,5.61900286,1984.6,1983.6,5.62974581]
[1772810193493,5.61900286,1984.6,1983.7,5.62974581]
[1772810194895,5.61900286,1984.8,1983.9,5.62974581]
[1772810195095,0.0061128,1984.9,1984.1,5.62974581]
[1772810196400,0.0061128,1984.9,1984.1,17.60574581]
[1772810196593,0.0061128,1984.9,1984.2,5.62974581]
[1772810196794,5.61900286,1985.3,1984.2,5.62974581]
[1772810196994,5.61900286,1985.3,1984.2,5.88174581]
[1772810197195,5.61900286,1985.6,1984.2,5.88174581]
[1772810197795,5.62341308,1985.6,1984.2,5.88174581]
[1772810197996,5.61900286,1985.4,1984.2,5.62974581]
[1772810198197,5.61900286,1985.2,1984.2,5.62974581]
[1772810200899,5.61900286,1985.0,1984.2,11.979]
[1772810201099,5.61900286,1985.3,1984.3,5.62974581]
[1772810201399,5.61900286,1985.2,1984.3,5.62974581]
[1772810201799,5.61900286,1985.5,1984.3,5.62974581]
[1772810202095,4.08886991,1985.6,1984.7,5.62974581]
[1772810202096,0.00441022,1985.6,1984.7,5.62974581]
[1772810202298,0.00441022,1985.6,1984.9,5.62974581]
[1772810202495,5.62341308,1985.6,1984.7,0.00478392]
[1772810203194,0.25183,1985.5,1984.7,0.00478392]
[1772810203394,5.61900286,1985.0,1984.2,17.49274581]
[1772810203595,5.61900286,1985.2,1984.2,5.62974581]
[1772810204500,5.61900286,1985.2,1984.2,5.63557553]
[1772810204901,5.87087286,1985.2,1984.2,0.00582972]
[1772810206099,5.61900286,1984.7,1983.6,5.62974581]
[1772810206298,5.61900286,1984.5,1983.6,5.62974581]
[1772810206699,5.61900286,1984.5,1983.4,17.50174581]
[1772810207101,5.61900286,1984.5,1983.5,5.62974581]
[1772810207399,4.08445969,1985.1,1983.4,0.00602133]
[1772810207400,0.252,1984.2,1983.4,0.00602133]
[1772810207593,5.61900286,1984.1,1983.4,0.00602133]
[1772810207795,5.61900286,1983.9,1983.4,0.00602133]
[1772810207998,5.61900286,1983.9,1982.8,5.62974581]
[1772810208998,0.00627648,1984.2,1982.8,5.88765233]
[1772810208999,5.61900286,1984.1,1982.8,5.88765233]
[1772810209205,0.00627648,1984.2,1983.3,5.62974581]
[1772810209404,0.00627648,1984.2,1983.5,5.62974581]
[1772810209602,5.62527934,1984.2,1983.5,5.62974581]
[1772810209902,5.62527934,1984.2,1983.4,11.865]
[1772810210103,5.62527934,1984.2,1983.5,5.62974581]
[1772810210397,0.00627648,1984.2,1983.5,5.62974581]
[1772810210798,5.62527934,1984.2,1983.5,5.62974581]
[1772810213202,5.61900286,1984.0,1983.1,5.62974581]
[1772810213803,5.61900286,1984.0,1983.0,11.899]
[1772810213804,5.61900286,1984.0,1982.8,0.00573652]
[1772810214098,5.61900286,1984.0,1982.9,5.62974581]
[1772810214304,0.25204,1983.9,1982.9,5.62974581]
[1772810214503,5.61900286,1983.8,1982.8,0.00573652]
[1772810214700,5.61900286,1983.8,1982.8,5.63548233]
[1772810215996,5.40117332,1984.1,1982.8,5.63548233]
[1772810216402,5.40117332,1984.1,1983.0,5.20072442]
[1772810217208,0.00627648,1984.2,1983.0,5.20072442]
[1772810217507,0.00627648,1984.2,1983.2,5.20072442]
[1772810217803,5.4074498,1984.2,1983.4,5.20072442]
[1772810218002,0.00627648,1984.2,1983.4,5.20072442]
[1772810219806,5.4074498,1984.2,1983.4,5.20072442]
[1772810221497,5.6594498,1984.2,1983.2,5.20072442]
[1772810222004,5.4074498,1984.2,1983.2,5.20072442]
[1772810222901,0.00627648,1984.2,1983.2,5.20072442]
[1772810223100,0.25195,1984.7,1983.1,11.931]
[1772810223101,5.51718221,1984.8,1983.8,5.41574308]
[1772810223304,2.59224174,1985.1,1982.8,0.00573652]
[1772810223305,2.59224174,1985.1,1984.2,5.41574308]
[1772810223505,5.51718221,1985.5,1984.4,5.41574308]
[1772810224807,5.52143011,1985.5,1984.4,5.41967462]
[1772810225608,5.51718221,1985.3,1984.4,5.41967462]
[1772810225803,0.0042479,1985.5,1984.4,5.67163462]
[1772810226008,5.51718221,1986.3,1984.4,5.67163462]
[1772810226205,5.51718221,1986.3,1984.9,0.25191]
[1772810226405,5.51718221,1986.3,1985.1,5.41574308]
[1772810226806,5.51718221,1986.3,1985.2,11.897]
[1772810227004,5.52162504,1986.3,1985.2,11.897]
[1772810227207,5.52162504,1986.3,1985.2,17.31274308]
[1772810227408,5.52162504,1986.3,1984.5,2.74228469]
[1772810227409,5.51718221,1986.1,1984.5,5.41574308]
[1772810227707,5.51718221,1985.9,1984.7,5.41574308]
[1772810228410,5.51718221,1985.7,1984.7,5.41574308]
[1772810228809,5.51718221,1985.7,1984.6,11.862]
[1772810229010,5.51718221,1985.5,1984.4,5.41967462]
[1772810230407,5.51718221,1985.3,1984.4,0.00393154]
[1772810230610,5.51718221,1985.3,1984.4,5.41967462]
[1772810232316,5.51718221,1985.8,1984.4,5.41967462]
[1772810232710,5.51718221,1985.4,1984.4,0.00393154]
[1772810232908,5.51718221,1985.4,1984.4,5.41967462]
[1772810235014,5.51718221,1986.0,1984.4,5.41967462]
[1772810235613,5.51718221,1986.0,1984.7,0.25193]
[1772810235815,5.51718221,1986.0,1984.9,5.41574308]
[1772810236210,5.51718221,1986.0,1985.1,5.41574308]
[1772810236411,5.51718221,1985.8,1984.9,5.41574308]
[1772810236910,5.51718221,1986.0,1984.9,5.41574308]
[1772810237719,5.52162504,1986.3,1984.9,5.41574308]
[1772810238014,5.52162504,1986.3,1985.1,5.41574308]
[1772810238210,0.25166,1986.9,1985.3,5.41574308]
[1772810238211,5.51718221,1986.7,1985.3,5.41574308]
[1772810238411,5.51718221,1986.7,1985.5,5.41574308]
[1772810238613,5.51718221,1987.1,1985.7,5.41574308]
[1772810238816,5.51718221,1987.1,1985.9,5.41574308]
[1772810239213,0.00567789,1987.1,1985.9,5.41574308]
[1772810239416,0.00567789,1987.1,1985.9,5.42071459]
[1772810239609,5.5228601,1987.1,1985.9,5.42071459]
[1772810240418,5.7745001,1987.1,1985.9,5.42071459]
[1772810243112,5.5228601,1987.1,1985.9,5.42071459]
[1772810243914,5.51718221,1986.9,1985.9,0.00497151]
[1772810244117,5.51718221,1986.7,1985.9,0.00497151]
[1772810244320,5.51718221,1986.7,1985.9,5.42071459]
[1772810245819,5.51718221,1986.7,1985.9,0.00497151]
[1772810246516,5.51718221,1986.7,1985.9,5.42071459]
[1772810248621,5.51718221,1986.7,1985.9,0.00497151]
[1772810249022,5.51718221,1986.5,1985.4,5.41574308]
[1772810249220,5.51718221,1986.3,1985.4,5.41574308]
[1772810249413,5.51718221,1986.3,1985.0,5.41574308]
[1772810249617,5.51718221,1986.6,1985.0,5.66763308]
[1772810250121,5.51718221,1986.6,1985.4,5.41574308]
[1772810250323,5.51718221,1986.4,1985.4,5.41574308]
[1772810250919,5.51718221,1986.4,1985.0,12.0759409]
[1772810250920,5.51718221,1986.2,1985.0,5.41979398]
[1772810251416,5.51718221,1986.6,1985.2,2.73648722]
[1772810251618,4.82621381,1987.0,1985.7,5.22618442]
[1772810252317,4.82621381,1987.0,1986.1,5.22618442]
[1772810252518,0.00567789,1987.1,1986.1,5.22618442]
[1772810252715,4.8318917,1987.1,1986.1,5.22618442]
[1772810252919,0.00567789,1987.1,1986.1,5.22618442]
[1772810253318,4.8318917,1987.1,1986.1,5.22618442]
[1772810254424,0.00567789,1987.1,1986.1,5.22618442]
[1772810254822,4.8318917,1987.1,1986.1,5.22618442]
[1772810255221,0.00567789,1987.1,1986.1,5.22618442]
[1772810255420,4.8318917,1987.1,1986.1,5.22618442]
[1772810255615,0.00567789,1987.1,1986.1,5.22618442]
[1772810255817,4.82621381,1988.0,1986.4,5.22618442]
[1772810256022,4.82621381,1988.0,1986.8,5.22618442]
[1772810256317,4.82621381,1988.0,1986.9,5.22618442]
[1772810256916,4.79955834,1988.0,1986.9,5.2320493]
[1772810257125,4.79955834,1988.0,1987.2,5.22618442]
[1772810257126,0.00373291,1988.0,1987.2,5.22618442]
[1772810257626,4.82621381,1988.6,1987.3,5.22618442]
[1772810257823,2.59180474,1989.4,1988.0,5.22618442]
[1772810258126,4.82621381,1989.1,1988.1,5.22618442]
[1772810258527,0.00636324,1989.1,1988.1,5.22618442]
[1772810258929,4.83257705,1989.1,1988.1,5.22618442]
[1772810259232,4.82621381,1988.9,1987.8,5.22618442]
[1772810260030,4.82621381,1988.7,1987.5,5.22618442]
[1772810260531,4.82621381,1989.0,1987.7,5.22618442]
[1772810261324,10.93786429,1990.3,1987.7,5.22618442]
[1772810261525,0.25129,1989.8,1988.4,5.22618442]
[1772810261731,4.82621381,1989.5,1988.4,5.22618442]
[1772810261931,0.25131,1989.6,1987.9,5.22618442]
[1772810261932,4.82621381,1989.3,1987.9,5.22618442]
[1772810262128,4.82621381,1989.1,1987.9,5.22618442]
[1772810262333,0.00362964,1989.1,1987.9,5.22988838]
[1772810262833,4.82984345,1989.1,1987.9,5.22988838]
[1772810263035,4.82984345,1989.1,1988.1,5.22618442]
[1772810263234,4.82621381,1988.9,1987.9,0.00370396]
[1772810263429,4.82621381,1988.9,1987.9,5.22988838]
[1772810263629,0.25142,1988.8,1987.9,5.22988838]
[1772810263827,4.82621381,1988.7,1987.9,0.00370396]
[1772810264333,4.82621381,1988.7,1987.9,5.22988838]
[1772810264837,4.82621381,1988.8,1987.9,0.00370396]
[1772810265527,4.82621381,1988.8,1987.4,5.22618442]
[1772810265832,2.74011686,1989.1,1987.4,5.22618442]
[1772810265833,4.82621381,1988.6,1987.4,5.22618442]
[1772810266031,4.82621381,1988.7,1987.8,5.22618442]
[1772810266632,4.82621381,1988.7,1987.8,5.23250447]
[1772810267333,5.07764381,1988.7,1987.8,0.00632005]
[1772810267530,4.82621381,1988.7,1987.9,5.22618442]
[1772810268136,4.82621381,1989.0,1987.9,5.22618442]
[1772810268737,0.00362964,1989.1,1988.2,5.22618442]
[1772810269242,4.82984345,1989.1,1988.2,5.22618442]
[1772810269933,4.82984345,1989.1,1987.9,5.22618442]
[1772810270132,0.25139,1989.0,1987.9,5.22618442]
[1772810270331,4.82621381,1988.7,1987.9,5.22618442]
[1772810270938,4.82621381,1988.7,1987.8,5.23250447]
[1772810271534,4.82621381,1988.7,1987.8,0.00632005]
[1772810271929,4.82621381,1988.1,1986.7,5.22618442]
[1772810272435,4.82621381,1988.6,1987.0,5.22618442]
[1772810272731,4.82621381,1988.6,1987.4,5.22618442]
[1772810272938,4.82621381,1988.6,1987.4,5.23257391]
[1772810273728,0.00362964,1989.1,1987.5,5.22618442]
[1772810273729,4.82621381,1989.0,1987.5,5.22618442]
[1772810274235,4.82621381,1989.0,1987.8,5.22618442]
[1772810274629,0.25143,1988.7,1987.8,5.22618442]
[1772810274834,4.82621381,1988.6,1987.8,5.22618442]
[1772810275835,4.79354466,1989.0,1987.8,5.22618442]
[1772810276235,4.79354466,1989.0,1988.0,4.88412801]
[1772810276441,0.00362964,1989.1,1988.0,4.88412801]
[1772810276637,4.7971743,1989.1,1988.0,4.88412801]
[1772810277339,5.0485543,1989.1,1988.0,4.88412801]
[1772810277536,5.0485543,1989.1,1987.5,4.88412801]
[1772810278137,5.0485543,1989.1,1987.6,2.73648722]
[1772810278338,5.0485543,1989.1,1987.7,4.88412801]
[1772810279538,4.7971743,1989.1,1987.9,4.88412801]
[1772810280539,4.7971743,1989.1,1988.1,4.88412801]
[1772810280738,0.00362964,1989.1,1988.1,4.88412801]
[1772810280940,4.7971743,1989.1,1988.1,4.88412801]
[1772810281442,4.79354466,1988.9,1987.9,4.88412801]
[1772810283144,0.25142,1988.8,1987.9,4.88412801]
[1772810283338,4.951361,1988.7,1987.5,4.80060901]
[1772810285446,4.95499064,1989.1,1987.6,0.25157]
[1772810285749,4.95499064,1989.1,1987.9,4.80060901]
[1772810286049,7.35887917,1989.0,1987.9,4.80060901]
[1772810286251,4.951361,1988.9,1987.9,4.80060901]
[1772810288049,4.951361,1988.7,1987.6,4.80060901]
[1772810288239,4.951361,1988.5,1987.6,4.80060901]
[1772810288444,4.951361,1988.8,1987.6,4.80060901]
[1772810288844,4.951361,1988.6,1987.5,4.80060901]
[1772810289853,4.951361,1988.4,1987.5,4.80060901]
[1772810290056,4.951361,1988.2,1987.4,0.00638949]
[1772810290242,4.11590152,1988.6,1986.4,4.80060901]
[1772810290243,4.951361,1988.0,1986.4,4.80060901]
[1772810290552,4.951361,1987.8,1986.6,4.80060901]
[1772810291348,4.951361,1987.8,1986.6,4.80532552]
[1772810291548,4.951361,1988.0,1986.8,4.80060901]
[1772810291952,4.951361,1987.8,1986.8,4.80060901]
[1772810292451,4.951361,1988.1,1986.8,4.80060901]
[1772810292643,4.951361,1988.1,1987.0,4.80060901]
[1772810293441,0.25148,1988.4,1987.0,4.80060901]
[1772810293646,4.951361,1988.3,1987.0,4.80060901]
[1772810294357,4.951361,1987.9,1986.7,4.80060901]
[1772810296349,4.951361,1987.9,1986.7,5.05228901]
[1772810296550,4.951361,1988.4,1986.9,4.80060901]
[1772810296948,4.951361,1988.4,1987.1,4.80060901]
[1772810297247,4.951361,1988.2,1987.1,4.80060901]
[1772810297849,4.951361,1988.5,1987.1,4.80060901]
[1772810298146,4.951361,1988.3,1987.1,4.80060901]
[1772810299051,4.951361,1988.1,1987.1,4.80060901]
[1772810300049,4.951361,1987.9,1987.1,4.80060901]
[1772810301156,4.951361,1987.9,1986.7,4.80060901]
[1772810302053,4.951361,1987.7,1986.7,4.80060901]
[1772810302351,7.66171049,1988.5,1986.6,0.00471651]
[1772810302352,4.951361,1988.1,1987.0,4.80060901]
[1772810302555,4.951361,1988.1,1987.2,4.80060901]
[1772810303158,4.951361,1988.7,1987.2,4.80060901]
[1772810303354,4.951361,1988.5,1987.6,4.80060901]
[1772810303657,4.951361,1989.0,1987.8,4.80060901]
[1772810304448,4.951361,1989.0,1987.7,2.73648722]
[1772810304449,4.951361,1989.0,1988.0,4.80060901]
[1772810304651,0.00579679,1989.0,1988.2,4.80060901]
[1772810305451,7.49888276,1989.5,1988.2,4.80060901]
[1772810305757,4.951361,1989.4,1988.2,4.80060901]
[1772810306260,4.951361,1989.7,1988.6,4.80060901]
[1772810306556,4.95701189,1989.7,1988.6,4.80060901]
[1772810306949,4.951361,1989.5,1988.3,4.80060901]
[1772810307151,4.951361,1989.3,1988.3,4.80060901]
[1772810307660,4.951361,1989.6,1988.3,4.80060901]
[1772810307860,4.95701189,1989.7,1988.7,4.80060901]
[1772810310064,15.27912622,1991.7,1989.1,4.80060901]
[1772810310065,4.951361,1990.7,1989.1,4.80060901]
[1772810310361,6.10230242,1990.8,1989.3,4.80060901]
[1772810310861,4.951361,1990.6,1989.3,4.80060901]
[1772810311060,4.951361,1990.4,1989.3,4.80060901]
[1772810311263,4.951361,1990.2,1988.9,4.80060901]
[1772810311558,4.951361,1990.0,1988.9,4.80060901]
[1772810312161,4.951361,1990.0,1988.6,4.81668179]
[1772810312861,4.66116024,1989.6,1988.6,4.81668179]
[1772810314271,4.66116024,1989.6,1988.2,4.81668179]
[1772810314671,4.66116024,1989.6,1988.4,4.81668179]
[1772810315064,4.66116024,1990.2,1988.4,4.81668179]
[1772810315756,4.66116024,1990.0,1988.4,4.81668179]
[1772810315965,4.66116024,1990.0,1988.5,4.81668179]
[1772810316758,4.66116024,1989.8,1988.5,4.81668179]
[1772810316967,4.66116024,1989.8,1988.0,11.52177261]
[1772810316968,4.66116024,1989.2,1988.0,4.8214544]
[1772810317157,4.66577624,1989.2,1988.0,4.8214544]
[1772810317663,4.66116024,1989.0,1988.0,4.8214544]
[1772810318562,4.66577624,1989.2,1988.0,4.8214544]
[1772810318764,4.66116024,1989.9,1988.2,4.81668179]
[1772810318964,4.66116024,1989.9,1988.4,4.81668179]
[1772810319165,4.66116024,1989.7,1988.4,4.81668179]
[1772810319567,0.25123,1990.3,1988.3,11.534]
[1772810319568,4.66116024,1989.9,1988.6,4.81668179]
[1772810319773,4.66501373,1989.9,1988.6,4.81668179]
[1772810320175,0.00385349,1989.9,1988.6,4.81668179]
[1772810320371,0.00385349,1989.9,1988.8,4.81668179]
[1772810320974,4.66501373,1989.9,1988.8,4.81668179]
[1772810321468,0.00385349,1989.9,1989.0,4.81668179]
[1772810322279,0.2512,1990.5,1989.0,4.81668179]
[1772810322280,4.66116024,1990.5,1989.0,4.81668179]
[1772810322477,4.66116024,1990.5,1989.2,4.81668179]
[1772810323279,4.66495245,1990.5,1989.2,4.81668179]
[1772810325286,4.66116024,1990.3,1989.2,4.81668179]
[1772810325689,4.66116024,1990.1,1989.2,4.81668179]
[1772810326189,4.66495245,1990.5,1989.2,4.81668179]
[1772810326390,0.00379221,1990.5,1989.2,4.81668179]
[1772810326585,0.00379221,1990.5,1989.4,4.81668179]
[1772810326788,0.00379221,1990.5,1989.4,4.82173544]
[1772810328592,4.66495245,1990.5,1989.4,4.82173544]
[1772810328889,4.66116024,1990.3,1989.4,4.82173544]
[1772810329491,4.66495245,1990.5,1989.4,4.82173544]
[1772810329994,4.91616245,1990.5,1989.4,4.82173544]
[1772810331881,4.66495245,1990.5,1989.4,4.82173544]
[1772810332582,0.00379221,1990.5,1989.4,4.82173544]
[1772810332787,1.15094142,1990.8,1989.6,4.81668179]
[1772810333792,1.1562988,1990.8,1989.6,4.81668179]
[1772810334291,5.81745904,1990.8,1989.6,4.81668179]
[1772810334486,4.91234024,1990.7,1989.6,4.81668179]
[1772810337795,4.66116024,1990.7,1989.6,4.81668179]
[1772810338493,4.53229359,1990.5,1989.6,4.81668179]
[1772810338693,4.53229359,1990.3,1989.6,4.81668179]
[1772810339295,4.53229359,1990.7,1989.6,4.81668179]
[1772810340098,5.68859239,1990.8,1989.8,4.51123254]
[1772810340486,1.1562988,1990.8,1989.8,4.51123254]
[1772810340893,4.53229359,1990.7,1989.8,4.51123254]
[1772810342394,4.43412415,1990.5,1989.5,4.5285439]
[1772810342597,4.43412415,1990.1,1989.5,4.5285439]
[1772810342791,0.25124,1990.2,1989.5,4.5285439]
[1772810342998,4.43412415,1990.4,1989.5,4.5285439]
[1772810343500,4.43412415,1990.2,1989.5,4.5285439]
[1772810343698,4.43412415,1990.2,1989.4,4.53359755]
[1772810343991,1.1562988,1990.8,1989.4,4.53359755]
[1772810343992,4.43412415,1990.7,1989.4,4.53359755]
[1772810344198,4.43412415,1990.5,1989.4,4.53359755]
[1772810344495,4.43412415,1990.3,1989.4,4.53359755]
[1772810344699,4.43412415,1990.1,1989.4,0.00505365]
[1772810345103,4.43412415,1990.1,1989.4,4.53359755]
[1772810345395,4.43412415,1990.1,1989.4,0.00505365]
[1772810345597,4.43412415,1990.1,1989.4,4.53359755]
[1772810345799,4.43412415,1990.7,1989.4,4.53359755]
[1772810346198,4.43412415,1990.5,1989.4,4.53359755]
[1772810347495,4.43412415,1989.9,1989.4,1e-08]
[1772810347697,4.43412415,1990.5,1989.4,4.52854391]
[1772810347895,4.43412415,1990.3,1989.4,4.52854391]
[1772810348291,4.43412415,1990.5,1989.4,4.52854391]
[1772810349395,4.68532415,1990.5,1989.4,4.52854391]
[1772810349695,4.68532415,1990.5,1989.4,1e-08]
[1772810349900,4.68535415,1990.3,1989.4,1e-08]
[1772810351399,4.43412415,1990.1,1989.4,1e-08]
[1772810351596,0.25123,1990.3,1989.4,1e-08]
[1772810351597,4.43412415,1990.3,1989.4,1e-08]
[1772810351798,4.43412415,1990.7,1989.4,1e-08]
[1772810352004,4.43412415,1990.5,1989.4,1e-08]
[1772810353801,4.43412415,1990.3,1989.4,1e-08]
[1772810354299,4.43412415,1990.7,1989.4,1e-08]
[1772810354504,4.43412415,1990.5,1989.4,1e-08]
[1772810355302,4.68532415,1990.5,1989.4,1e-08]
[1772810357499,4.43412415,1990.5,1989.4,1e-08]
[1772810357702,4.43412415,1990.1,1989.4,1e-08]
[1772810358302,4.43412415,1990.5,1989.4,1e-08]
[1772810358507,4.68533415,1990.5,1989.4,1e-08]
[1772810358708,4.43412415,1990.3,1989.4,1e-08]
[1772810360311,4.43412415,1989.9,1989.4,1e-08]
[1772810360506,4.43412415,1990.4,1989.4,1e-08]
[1772810360708,4.43412415,1990.2,1989.4,1e-08]
[1772810361707,4.43412415,1990.4,1989.4,1e-08]
[1772810362109,4.43412415,1990.7,1989.4,1e-08]
[1772810362616,1.1562988,1990.8,1989.6,4.5285439]
[1772810362617,5.59042295,1990.8,1989.6,4.5285439]
[1772810362910,4.43412415,1990.7,1989.6,4.5285439]
[1772810363412,1.1562988,1990.8,1989.6,4.5285439]
[1772810363710,4.43412415,1990.7,1989.6,4.5285439]
[1772810366907,1.1562988,1990.8,1989.8,4.5285439]
[1772810367114,2.53876342,1990.9,1990.0,4.5285439]
[1772810367712,6.97288757,1990.9,1990.0,4.5285439]
[1772810368414,4.43412415,1990.8,1990.0,4.5285439]
[1772810369011,2.5446394,1990.9,1990.0,4.5285439]
[1772810369911,4.14925726,1991.9,1990.8,4.5285439]
[1772810370119,4.43412415,1991.9,1990.9,4.5285439]
[1772810370518,4.43412415,1991.7,1990.7,4.5285439]
[1772810370921,4.43412415,1991.5,1990.7,0.0064936]
[1772810371115,0.25109,1991.4,1990.7,0.0064936]
[1772810371315,0.00569315,1991.7,1989.5,15.96918187]
[1772810371316,4.43412415,1991.1,1989.8,4.5285439]
[1772810372118,0.25111,1991.2,1989.8,4.5285439]
[1772810372317,4.55710615,1991.5,1990.0,4.52658517]
[1772810372517,0.00569315,1991.7,1990.8,4.52658517]
[1772810372716,0.00569315,1991.7,1990.9,4.52658517]
[1772810373118,4.5627993,1991.7,1990.9,4.52658517]
[1772810374318,4.5627993,1991.7,1990.6,4.52658517]
[1772810376217,4.55710615,1991.5,1990.6,4.52658517]
[1772810376518,4.55710615,1991.5,1990.4,4.52658517]
[1772810378423,4.55710615,1991.3,1990.1,4.52658517]
[1772810378622,4.55710615,1990.9,1990.1,4.52658517]
[1772810379121,4.55710615,1991.3,1990.1,4.52658517]
[1772810380119,4.55710615,1991.1,1990.1,4.52658517]
[1772810380622,4.55710615,1991.6,1990.1,4.52658517]
[1772810380822,0.25675315,1991.7,1990.1,4.52658517]
[1772810380823,4.55710615,1991.4,1990.1,4.52658517]
[1772810381627,4.55710615,1991.2,1990.1,4.52658517]
[1772810382927,4.55710615,1991.6,1990.1,4.77782517]
[1772810383121,0.00569315,1991.7,1990.8,4.52658517]
[1772810383321,4.55710615,1992.0,1990.8,4.52658517]
[1772810384230,4.55710615,1991.6,1990.3,4.52658517]
[1772810384431,4.55710615,1991.4,1990.3,4.52658517]
[1772810384925,4.55710615,1991.7,1990.3,4.52658517]
[1772810386830,4.55710615,1991.7,1990.5,4.52658517]
[1772810387225,4.5634777,1992.0,1990.7,4.52658517]
[1772810387835,4.55710615,1991.8,1990.7,4.52658517]
[1772810388632,0.00637155,1992.0,1990.7,4.52658517]
[1772810388633,4.55710615,1991.6,1990.7,4.52658517]